bitfinex/quotes_BTCUSD_20220731
["timestamp","ask_amount","ask_price","bid_price","bid_amount"]
[1659297406945,0.70077291,23869.0,23866.0,0.159732]
[1659297407156,0.70077291,23869.0,23866.0,0.104732]
[1659297407395,0.70077291,23869.0,23866.0,0.1047958]
[1659297407612,0.70077291,23869.0,23866.0,0.11006001]
[1659297408068,0.70077291,23869.0,23866.0,0.17106001]
[1659297408291,0.70077291,23869.0,23866.0,0.17099621]
[1659297408690,0.70077291,23869.0,23867.0,0.00069162]
[1659297408912,0.70077291,23869.0,23867.0,0.73375662]
[1659297409478,0.53884055,23868.0,23867.0,0.73375662]
[1659297409940,0.53884055,23868.0,23867.0,0.80575662]
[1659297410160,0.53884055,23868.0,23867.0,0.805065]
[1659297410405,0.53884055,23868.0,23867.0,0.80575662]
[1659297410629,0.53884055,23868.0,23867.0,1.10179662]
[1659297411277,0.53884055,23868.0,23867.0,0.80575662]
[1659297411530,0.53884055,23868.0,23867.0,1.10179562]
[1659297411730,0.53884055,23868.0,23867.0,1.02979562]
[1659297411947,0.53884055,23868.0,23867.0,1.10379562]
[1659297412372,0.53884055,23868.0,23867.0,1.103104]
[1659297412821,0.53884055,23868.0,23867.0,0.684209]
[1659297413217,0.53884055,23868.0,23867.0,0.610209]
[1659297413391,0.5682495,23868.0,23867.0,0.296039]
[1659297413751,0.58884055,23868.0,23866.0,0.04195109]
[1659297414032,0.58884055,23868.0,23867.0,0.372039]
[1659297414206,0.58884055,23868.0,23867.0,0.076]
[1659297414442,0.6182495,23868.0,23867.0,0.076]
[1659297414817,0.58884055,23868.0,23867.0,0.372039]
[1659297415209,0.58884055,23868.0,23867.0,0.296039]
[1659297415469,0.58884055,23868.0,23866.0,0.15195242]
[1659297415657,0.58884055,23868.0,23867.0,0.296039]
[1659297415819,0.58884055,23868.0,23867.0,0.076]
[1659297416041,0.58884055,23868.0,23867.0,0.07669162]
[1659297416257,0.58884055,23868.0,23867.0,0.372039]
[1659297416457,0.58884055,23868.0,23867.0,0.076]
[1659297416707,0.58884055,23868.0,23867.0,0.372039]
[1659297417084,0.58884055,23868.0,23867.0,0.076]
[1659297417308,0.58884055,23868.0,23867.0,0.00069162]
[1659297417524,0.58884055,23868.0,23866.0,0.77506321]
[1659297417953,0.58884055,23868.0,23867.0,0.076]
[1659297418402,0.58884055,23868.0,23867.0,0.08195583]
[1659297418811,0.58884055,23868.0,23867.0,0.076]
[1659297419355,0.58884055,23868.0,23866.0,0.7757501]
[1659297419588,0.58884055,23868.0,23866.0,0.77568164]
[1659297420057,0.58884055,23868.0,23867.0,0.076]
[1659297420287,0.88967555,23868.0,23867.0,0.076]
[1659297420747,1.34693288,23868.0,23867.0,0.076]
[1659297420969,1.39693288,23868.0,23867.0,0.076]
[1659297421206,1.42634183,23868.0,23859.0,0.00112964]
[1659297421422,1.70595733,23867.0,23866.0,6.17e-05]
[1659297421682,1.70679233,23867.0,23866.0,6.17e-05]
[1659297422058,1.75679233,23867.0,23866.0,6.17e-05]
[1659297422260,1.80679233,23867.0,23860.0,0.40725733]
[1659297422737,1.50595733,23867.0,23860.0,0.40725733]
[1659297422966,1.50595733,23867.0,23862.0,7.115e-05]
[1659297423399,0.300835,23866.0,23862.0,7.115e-05]
[1659297423606,1.09315733,23867.0,23862.0,7.115e-05]
[1659297423810,0.300835,23866.0,23862.0,0.051]
[1659297424041,1.09522555,23867.0,23862.0,0.051]
[1659297424374,1.09522555,23867.0,23863.0,8.192e-05]
[1659297424584,0.49489778,23864.0,23863.0,8.192e-05]
[1659297424921,0.54489778,23864.0,23863.0,8.192e-05]
[1659297425364,0.54489778,23864.0,23862.0,0.051]
[1659297425569,0.59489778,23863.0,23862.0,0.051]
[1659297425787,0.62430673,23863.0,23862.0,0.05107088]
[1659297426425,0.62430673,23863.0,23862.0,7.088e-05]
[1659297426889,0.62430673,23863.0,23860.0,0.72152033]
[1659297427063,0.33382104,23863.0,23860.0,0.40725733]
[1659297427388,0.05,23862.0,23860.0,0.40731845]
[1659297427614,0.05,23862.0,23860.0,0.41974506]
[1659297427984,0.05,23862.0,23860.0,0.79101606]
[1659297428403,0.05,23862.0,23860.0,0.79095494]
[1659297428781,0.05,23862.0,23860.0,0.79101606]
[1659297429196,0.05206224,23862.0,23860.0,0.73401606]
[1659297429655,0.05206224,23862.0,23860.0,0.73395494]
[1659297429981,0.05206224,23862.0,23860.0,0.8040218]
[1659297430348,0.05194766,23862.0,23860.0,0.8040218]
[1659297430982,0.05194766,23862.0,23860.0,0.80395494]
[1659297431189,0.05194766,23862.0,23860.0,0.73395494]
[1659297431833,0.05194766,23862.0,23860.0,0.80395494]
[1659297432461,0.08135661,23862.0,23860.0,0.79152833]
[1659297432693,0.08135661,23862.0,23860.0,0.79715066]
[1659297433138,0.08135661,23862.0,23860.0,0.72152833]
[1659297433561,0.05194766,23862.0,23860.0,0.72152833]
[1659297433764,0.05194766,23862.0,23860.0,0.7972233]
[1659297434200,0.05194766,23862.0,23860.0,0.38996597]
[1659297434455,0.08135661,23862.0,23860.0,0.38434364]
[1659297434668,0.650835,23861.0,23860.0,0.07007264]
[1659297434884,0.650835,23861.0,23860.0,0.07]
[1659297435103,0.650835,23861.0,23859.0,0.00120369]
[1659297435346,0.300835,23860.0,23859.0,0.00120369]
[1659297435839,0.350835,23861.0,23859.0,0.08120369]
[1659297436040,0.300835,23860.0,23859.0,0.08120369]
[1659297436246,0.350835,23861.0,23859.0,0.08112964]
[1659297436449,0.300835,23860.0,23859.0,0.08112964]
[1659297436707,0.700835,23860.0,23859.0,0.08120369]
[1659297436950,0.300835,23860.0,23859.0,0.08120369]
[1659297437132,0.35289524,23861.0,23859.0,0.00120369]
[1659297437835,0.35289524,23861.0,23859.0,0.05612964]
[1659297438064,0.39573278,23860.0,23859.0,0.05612964]
[1659297438286,0.39573278,23860.0,23859.0,0.05619404]
[1659297439128,0.39573278,23860.0,23859.0,0.05612964]
[1659297439330,0.39573278,23860.0,23859.0,0.00112964]
[1659297440018,0.39573278,23860.0,23859.0,0.06912964]
[1659297440231,0.09489778,23860.0,23859.0,0.06912964]
[1659297440755,0.39573278,23860.0,23859.0,0.06912964]
[1659297441206,0.39573278,23860.0,23859.0,0.00112964]
[1659297441434,0.44573278,23860.0,23859.0,0.00112964]
[1659297441891,0.44573278,23860.0,23859.0,0.06912964]
[1659297443069,0.14489778,23860.0,23859.0,0.06912964]
[1659297443294,0.44573278,23860.0,23859.0,0.06912964]
[1659297443743,0.44573278,23860.0,23859.0,0.00112964]
[1659297443970,0.44573278,23860.0,23859.0,0.06712964]
[1659297445377,0.44573278,23860.0,23859.0,0.00112964]
[1659297446075,0.44573278,23860.0,23859.0,0.06712964]
[1659297447409,0.44573278,23860.0,23859.0,0.00112964]
[1659297448003,0.44573278,23860.0,23859.0,0.06712964]
[1659297448198,0.85,23856.0,23855.0,0.001]
[1659297448405,1.150835,23856.0,23855.0,0.001]
[1659297448634,1.64430288,23856.0,23855.0,0.001]
[1659297449898,1.72230288,23856.0,23855.0,0.031]
[1659297450991,1.72437127,23856.0,23855.0,0.031]
[1659297451190,0.84637127,23856.0,23855.0,0.001]
[1659297451631,0.87578022,23856.0,23855.0,0.001]
[1659297451853,0.87578022,23856.0,23855.0,0.08]
[1659297452119,1.28303755,23856.0,23855.0,0.08]
[1659297453231,1.28303755,23856.0,23855.0,0.001]
[1659297453949,1.36303755,23856.0,23855.0,0.001]
[1659297455087,1.28303755,23856.0,23855.0,0.001]
[1659297455532,1.38783955,23856.0,23855.0,0.001]
[1659297455749,0.98220255,23856.0,23855.0,0.001]
[1659297455982,1.06120255,23856.0,23855.0,0.001]
[1659297456456,1.36203755,23856.0,23855.0,0.001]
[1659297457129,1.28303755,23856.0,23855.0,0.001]
[1659297457626,0.98220255,23856.0,23855.0,0.001]
[1659297457846,0.52494522,23856.0,23855.0,0.12233]
[1659297458068,0.00206839,23856.0,23855.0,0.13084271]
[1659297458514,0.00206839,23856.0,23855.0,0.42705871]
[1659297458762,0.00206839,23856.0,23855.0,0.72705871]
[1659297459217,0.00206839,23856.0,23855.0,0.64905871]
[1659297459456,0.00206839,23856.0,23855.0,0.69093871]
[1659297459674,0.00206839,23856.0,23855.0,0.64905871]
[1659297459915,0.00206839,23856.0,23855.0,0.404546]
[1659297460167,0.00206839,23856.0,23855.0,0.10833]
[1659297460395,0.00206839,23856.0,23855.0,0.404546]
[1659297460616,0.00206839,23856.0,23855.0,0.10833]
[1659297460830,0.00206839,23856.0,23855.0,0.065]
[1659297461068,0.00206839,23856.0,23855.0,0.297216]
[1659297461287,0.03147734,23856.0,23855.0,0.001]
[1659297461702,0.00206839,23856.0,23855.0,0.001]
[1659297461922,0.00206839,23856.0,23855.0,0.069]
[1659297462385,0.00206839,23856.0,23855.0,0.11088]
[1659297462599,0.00206839,23856.0,23855.0,0.069]
[1659297462822,0.00206839,23856.0,23855.0,0.07426421]
[1659297463280,0.00206839,23856.0,23855.0,0.00626421]
[1659297463764,0.00206839,23856.0,23855.0,0.00647797]
[1659297463977,0.00206839,23856.0,23855.0,0.065]
[1659297464221,0.00206839,23856.0,23855.0,0.07026421]
[1659297464665,0.00206839,23856.0,23855.0,0.07047797]
[1659297465379,0.00206839,23856.0,23855.0,0.065]
[1659297465569,0.00206839,23856.0,23855.0,0.001]
[1659297465810,0.03147734,23856.0,23855.0,0.001]
[1659297466253,0.00206839,23856.0,23855.0,0.069]
[1659297466730,0.09252839,23856.0,23855.0,0.069]
[1659297466945,0.00206839,23856.0,23855.0,0.069]
[1659297467636,0.00206839,23856.0,23855.0,0.001]
[1659297467862,0.00206839,23856.0,23855.0,0.00647797]
[1659297468104,0.00206839,23856.0,23855.0,0.04547797]
[1659297468272,0.00206839,23856.0,23855.0,0.04]
[1659297469075,0.00206839,23856.0,23855.0,0.00121376]
[1659297469314,0.00206839,23856.0,23855.0,0.001]
[1659297469948,0.00206839,23856.0,23855.0,0.053]
[1659297470065,0.00206839,23856.0,23855.0,0.052734]
[1659297471098,0.00206839,23856.0,23855.0,0.000734]
[1659297471758,0.00206839,23856.0,23855.0,0.052734]
[1659297472208,0.00206839,23856.0,23853.0,0.04188]
[1659297472433,0.21163725,23856.0,23853.0,0.638122]
[1659297472642,0.26163725,23856.0,23854.0,0.104782]
[1659297472851,0.26163725,23856.0,23855.0,0.30148221]
[1659297473107,0.00206839,23856.0,23855.0,0.30148221]
[1659297473793,0.00206839,23856.0,23855.0,0.62448221]
[1659297473995,0.00206839,23856.0,23855.0,0.32448221]
[1659297474216,0.00206839,23856.0,23855.0,0.36636221]
[1659297474490,0.00206839,23856.0,23855.0,0.32448221]
[1659297474697,0.00206839,23856.0,23855.0,0.319218]
[1659297475121,0.00206839,23856.0,23855.0,0.296218]
[1659297475342,0.00206839,23856.0,23855.0,0.338098]
[1659297475544,0.00206839,23856.0,23855.0,0.64114058]
[1659297475852,0.00206839,23856.0,23855.0,0.41514058]
[1659297476060,0.00206839,23856.0,23855.0,0.37326058]
[1659297476480,0.00206839,23856.0,23855.0,0.412098]
[1659297476707,0.00206839,23856.0,23855.0,0.71514058]
[1659297476933,0.00206839,23856.0,23855.0,0.41514058]
[1659297477228,0.00206839,23856.0,23855.0,0.34114058]
[1659297478008,0.00206839,23856.0,23855.0,0.338098]
[1659297478384,0.00206839,23856.0,23855.0,0.296218]
[1659297478590,0.00206839,23856.0,23855.0,0.30148221]
[1659297478854,0.00206839,23856.0,23855.0,0.66748221]
[1659297479501,0.00206839,23856.0,23855.0,0.70951432]
[1659297479710,0.00206839,23856.0,23855.0,0.66763432]
[1659297479929,0.00206839,23856.0,23855.0,0.73663432]
[1659297480138,0.00206839,23856.0,23855.0,0.37063432]
[1659297480365,0.00206839,23856.0,23855.0,0.365218]
[1659297480568,0.00206839,23856.0,23855.0,0.37063432]
[1659297480828,0.00206839,23856.0,23855.0,0.069]
[1659297481246,0.00206839,23856.0,23855.0,0.296216]
[1659297481832,0.00206839,23856.0,23855.0,0.32463232]
[1659297482281,0.00206839,23856.0,23855.0,0.319216]
[1659297482489,0.00206839,23856.0,23855.0,0.023]
[1659297483095,0.05206839,23856.0,23854.0,0.775296]
[1659297483304,0.05206839,23856.0,23855.0,0.346216]
[1659297483515,0.05206839,23856.0,23854.0,0.314331]
[1659297483714,0.05206839,23856.0,23855.0,0.296216]
[1659297483916,0.0816911,23856.0,23855.0,0.056]
[1659297484406,0.0816911,23856.0,23855.0,0.10329632]
[1659297484407,0.05206839,23856.0,23855.0,0.10329632]
[1659297484657,0.05206839,23856.0,23855.0,0.35763232]
[1659297484884,0.00206839,23856.0,23855.0,0.65763232]
[1659297485102,0.00206839,23856.0,23855.0,0.352216]
[1659297485325,0.00206839,23856.0,23855.0,0.30163232]
[1659297485753,0.00206839,23856.0,23855.0,0.296216]
[1659297485970,0.00206839,23856.0,23855.0,0.376216]
[1659297486181,0.00206839,23856.0,23855.0,0.08]
[1659297486859,0.00206839,23856.0,23855.0,0.376216]
[1659297487347,0.00206839,23856.0,23855.0,0.296216]
[1659297488052,0.00206839,23856.0,23855.0,0.056]
[1659297489336,0.00206839,23856.0,23854.0,0.74144888]
[1659297489554,0.00206839,23856.0,23855.0,0.296216]
[1659297489816,0.00206839,23856.0,23854.0,0.41527521]
[1659297490017,0.00206839,23856.0,23855.0,0.056]
[1659297490852,0.00206839,23856.0,23855.0,0.06126421]
[1659297491083,0.00206839,23856.0,23855.0,0.06416227]
[1659297491289,0.00206839,23856.0,23854.0,0.251433]
[1659297491508,0.00206839,23856.0,23854.0,0.356211]
[1659297491935,0.00206839,23856.0,23854.0,0.412211]
[1659297492825,0.21162937,23856.0,23854.0,0.412211]
[1659297493054,0.2615344,23856.0,23855.0,0.05]
[1659297493277,0.2615344,23856.0,23854.0,0.37849639]
[1659297493473,0.000394,23855.0,23854.0,0.370334]
[1659297493721,0.000394,23855.0,23854.0,0.666563]
[1659297494166,0.000394,23855.0,23854.0,0.666562]
[1659297494376,0.000394,23855.0,23854.0,0.708442]
[1659297495039,0.000394,23855.0,23854.0,0.666562]
[1659297495251,0.002299,23855.0,23854.0,0.652442]
[1659297495461,0.002299,23855.0,23854.0,0.547662]
[1659297495681,0.002299,23855.0,23854.0,0.505782]
[1659297495897,0.002299,23855.0,23854.0,0.288553]
[1659297496382,0.002299,23855.0,23854.0,0.584784]
[1659297497031,0.002299,23855.0,23854.0,0.288553]
[1659297497239,0.002299,23855.0,23854.0,0.209553]
[1659297497680,0.002299,23855.0,23854.0,0.505785]
[1659297497887,0.002299,23855.0,23854.0,0.051]
[1659297498144,0.26187783,23855.0,23854.0,0.347231]
[1659297498367,0.26187783,23855.0,23854.0,0.051]
[1659297499215,0.26187783,23855.0,23853.0,0.10485468]
[1659297499434,0.05,23854.0,23853.0,0.31963021]
[1659297499663,0.05,23854.0,23853.0,0.296245]
[1659297499853,0.05,23854.0,23853.0,0.56088568]
[1659297500311,0.05,23854.0,23853.0,0.35130968]
[1659297500529,0.05,23854.0,23853.0,0.05506468]
[1659297500758,0.05,23854.0,23853.0,0.055]
[1659297500759,0.350835,23854.0,23853.0,0.055]
[1659297501213,0.350835,23854.0,23849.0,0.0033]
[1659297501433,0.05,23854.0,23849.0,0.0033]
[1659297501701,0.115099,23855.0,23849.0,0.0033]
[1659297501921,0.079,23854.0,23849.0,0.0033]
[1659297502158,0.4812885,23851.0,23849.0,0.0033]
[1659297502371,0.5312885,23851.0,23850.0,0.00526421]
[1659297502580,0.5312885,23851.0,23849.0,0.0033]
[1659297502781,0.09489778,23850.0,23849.0,0.0033]
[1659297503240,0.5312885,23851.0,23849.0,0.0033]
[1659297503921,0.6102885,23851.0,23849.0,0.0033]
[1659297504146,0.09489778,23850.0,23849.0,0.0033]
[1659297504586,0.6102885,23851.0,23849.0,0.04518]
[1659297504775,0.09489778,23850.0,23849.0,0.04518]
[1659297504993,0.12430673,23850.0,23849.0,0.04518]
[1659297505417,0.02962271,23850.0,23849.0,0.04518]
[1659297505623,0.02962271,23850.0,23849.0,0.0033]
[1659297506120,0.02962271,23850.0,23849.0,0.0823]
[1659297506339,0.77053171,23851.0,23849.0,0.0823]
[1659297507017,0.77053171,23851.0,23849.0,0.08236294]
[1659297507246,0.0019099,23850.0,23849.0,0.01164393]
[1659297507476,0.0019099,23850.0,23849.0,0.00336294]
[1659297507970,0.0019099,23850.0,23849.0,0.05136294]
[1659297508194,0.0019099,23850.0,23849.0,0.0513]
[1659297509849,0.0019099,23850.0,23849.0,0.0491]
[1659297511182,0.0019099,23850.0,23849.0,0.0011]
[1659297512107,0.0019099,23850.0,23849.0,0.0491]
[1659297513241,0.0019099,23850.0,23849.0,0.0011]
[1659297513708,0.40916723,23850.0,23847.0,0.00169605]
[1659297513943,0.40916723,23850.0,23843.0,0.462229]
[1659297513944,0.09489778,23844.0,23840.0,0.0022]
[1659297514184,0.14489778,23841.0,23840.0,0.0022]
[1659297514405,0.14489778,23841.0,23831.0,0.15657071]
[1659297514406,0.09489778,23832.0,23831.0,0.15657071]
[1659297514653,0.09489778,23832.0,23831.0,0.40725733]
[1659297514869,0.09489778,23832.0,23827.0,0.0022]
[1659297514870,0.14489778,23832.0,23828.0,0.03154]
[1659297515103,0.14489778,23832.0,23828.0,0.40725733]
[1659297515104,0.09489778,23829.0,23828.0,0.40725733]
[1659297515340,0.3,23834.0,23828.0,0.74574733]
[1659297515341,0.113,23833.0,23828.0,0.74574733]
[1659297515581,0.113,23833.0,23827.0,0.0022]
[1659297515582,0.54429856,23829.0,23827.0,0.0022]
[1659297515821,0.09489778,23828.0,23827.0,0.29889005]
[1659297516070,0.09489778,23828.0,23826.0,0.0011]
[1659297516071,0.55215511,23828.0,23826.0,0.0011]
[1659297516299,0.09489778,23827.0,23826.0,0.0011]
[1659297516989,0.693366,23828.0,23826.0,0.0011]
[1659297517452,0.09489778,23826.0,23825.0,0.00526421]
[1659297517689,0.12452049,23826.0,23825.0,0.01264348]
[1659297517918,0.05,23826.0,23825.0,0.01264348]
[1659297518136,0.693366,23828.0,23825.0,0.01264348]
[1659297518370,0.693366,23828.0,23826.0,0.40725733]
[1659297518620,0.693366,23828.0,23827.0,0.28888]
[1659297518853,0.72298871,23828.0,23827.0,0.30152348]
[1659297519085,0.693366,23828.0,23827.0,0.01264348]
[1659297519317,0.693366,23828.0,23827.0,0.30152148]
[1659297519603,0.693366,23828.0,23827.0,0.01264348]
[1659297519815,0.693366,23828.0,23826.0,0.44913733]
[1659297520051,0.693366,23828.0,23827.0,0.341878]
[1659297520546,0.643366,23828.0,23827.0,0.341878]
[1659297521247,0.638366,23828.0,23827.0,0.383758]
[1659297521479,0.638366,23828.0,23827.0,0.641878]
[1659297521694,0.638366,23828.0,23827.0,0.34714221]
[1659297521919,0.638366,23828.0,23827.0,0.079]
[1659297522156,0.638366,23828.0,23827.0,0.367878]
[1659297522382,0.638366,23828.0,23827.0,1.37513533]
[1659297522635,0.638366,23828.0,23827.0,1.20381954]
[1659297522857,0.638366,23828.0,23827.0,1.25381954]
[1659297523309,0.638366,23828.0,23827.0,1.17481954]
[1659297523522,0.638366,23828.0,23827.0,1.18242468]
[1659297524019,0.638366,23828.0,23827.0,1.26242468]
[1659297525382,0.638366,23828.0,23827.0,1.18242468]
[1659297525858,0.638366,23828.0,23827.0,0.79327954]
[1659297526074,0.688366,23828.0,23827.0,0.87327954]
[1659297527255,0.69027316,23828.0,23827.0,1.09327954]
[1659297528074,0.69027316,23828.0,23827.0,1.17327954]
[1659297528544,0.64027316,23828.0,23827.0,1.17327954]
[1659297528798,0.64027316,23828.0,23827.0,1.20481954]
[1659297529265,0.64027316,23828.0,23827.0,1.12481954]
[1659297529915,0.64027316,23828.0,23827.0,1.20481954]
[1659297530545,0.69027316,23828.0,23827.0,1.20481954]
[1659297531045,0.64027316,23828.0,23827.0,1.20734711]
[1659297531270,0.64027316,23828.0,23827.0,1.12734711]
[1659297531933,0.69027316,23828.0,23827.0,1.17580711]
[1659297532393,0.69027316,23828.0,23827.0,1.12580711]
[1659297532644,0.64027316,23828.0,23827.0,1.12580711]
[1659297533310,0.69027316,23828.0,23827.0,1.12580711]
[1659297533754,0.69027316,23828.0,23827.0,1.04580711]
[1659297534003,0.69027316,23828.0,23827.0,1.12580711]
[1659297534712,0.64027316,23828.0,23827.0,1.12580711]
[1659297534972,0.60926908,23828.0,23827.0,2.39251168]
[1659297535197,0.23396476,23828.0,23827.0,2.52223568]
[1659297535896,0.23396476,23828.0,23827.0,2.59623568]
[1659297536138,0.23396476,23828.0,23827.0,1.84623568]
[1659297536348,0.23396476,23828.0,23827.0,1.80247111]
[1659297536549,0.23396476,23828.0,23827.0,1.77093111]
[1659297537031,0.23396476,23828.0,23827.0,1.80247111]
[1659297537244,0.23396476,23828.0,23827.0,1.77847111]
[1659297537466,0.23396476,23828.0,23827.0,2.04693111]
[1659297537685,0.23396476,23828.0,23827.0,2.09069568]
[1659297537928,0.23396476,23828.0,23827.0,2.16469568]
[1659297538161,0.23396476,23828.0,23827.0,2.11469568]
[1659297538387,0.23396476,23828.0,23827.0,1.2057799]
[1659297538632,0.23396476,23828.0,23827.0,1.11740591]
[1659297538915,0.28396476,23828.0,23827.0,1.11740591]
[1659297539836,0.28396476,23828.0,23827.0,1.04340591]
[1659297540049,0.28396476,23828.0,23827.0,1.12340591]
[1659297541194,0.28396476,23828.0,23827.0,1.04340591]
[1659297541436,0.23396476,23828.0,23827.0,1.69540591]
[1659297541648,0.23396476,23828.0,23827.0,1.83917048]
[1659297542114,0.23396476,23828.0,23827.0,1.89817048]
[1659297542634,0.5773,23843.0,23834.0,0.05]
[1659297542823,0.5773,23843.0,23835.0,0.74913733]
[1659297543071,0.5773,23843.0,23834.0,0.1]
[1659297543072,0.9536,23844.0,23838.0,0.04188]
[1659297543302,0.49988011,23843.0,23839.0,0.40725733]
[1659297543527,0.49988011,23843.0,23838.0,0.40725733]
[1659297543528,0.02962271,23842.0,23838.0,0.40725733]
[1659297544242,0.51485791,23840.0,23838.0,0.40725733]
[1659297544707,0.51485791,23840.0,23839.0,0.288701]
[1659297544938,0.51485791,23840.0,23838.0,0.40725733]
[1659297545191,0.51485791,23840.0,23839.0,0.288704]
[1659297545421,0.51485791,23840.0,23838.0,0.40725733]
[1659297545638,0.51485791,23840.0,23839.0,0.288704]
[1659297545861,0.56485791,23840.0,23838.0,0.40725733]
[1659297546081,0.56485791,23840.0,23839.0,0.037]
[1659297546555,0.59448062,23840.0,23839.0,0.037]
[1659297546793,1.80256506,23840.0,23839.0,0.037]
[1659297547255,0.89735739,23840.0,23836.0,0.00083725]
[1659297547501,0.56678768,23840.0,23836.0,0.00083725]
[1659297547975,0.58078768,23840.0,23836.0,0.07583725]
[1659297548196,0.58078768,23840.0,23836.0,0.11771725]
[1659297548652,0.58078768,23840.0,23836.0,0.07583725]
[1659297549325,0.58078768,23840.0,23836.0,0.00083725]
[1659297549326,0.56678768,23840.0,23836.0,0.00083725]
[1659297550007,0.64578768,23840.0,23836.0,0.00083725]
[1659297550490,0.3,23837.0,23836.0,0.00083725]
[1659297550701,0.35,23837.0,23836.0,0.00083725]
[1659297550924,0.37962271,23837.0,23836.0,0.00083725]
[1659297551886,0.35,23837.0,23836.0,0.00083725]
[1659297552119,0.05,23837.0,23836.0,0.07983725]
[1659297552346,0.00193662,23839.0,23836.0,0.07983725]
[1659297553027,0.02962271,23838.0,23836.0,0.07983725]
[1659297553934,0.02962271,23838.0,23836.0,0.07883725]
[1659297555363,0.02962271,23838.0,23836.0,0.00083725]
[1659297555579,0.00193662,23839.0,23836.0,0.00622178]
[1659297555815,0.00193662,23839.0,23836.0,0.00083725]
[1659297556032,0.00193662,23839.0,23836.0,0.07883725]
[1659297556760,0.00193662,23839.0,23836.0,0.36758325]
[1659297556995,0.00193662,23839.0,23836.0,0.07883725]
[1659297557245,0.00193662,23839.0,23836.0,0.00083725]
[1659297557470,1.09489778,23837.0,23836.0,0.00083725]
[1659297557718,1.50904478,23837.0,23836.0,0.00083725]
[1659297559081,1.47546749,23837.0,23836.0,0.00083725]
[1659297559326,1.47740057,23837.0,23836.0,0.00083725]
[1659297559602,1.54100057,23837.0,23836.0,0.00083725]
[1659297559841,1.59100057,23837.0,23836.0,0.00083725]
[1659297560083,1.59100057,23837.0,23827.0,0.04188]
[1659297560084,0.1,23835.0,23827.0,0.04188]
[1659297560312,0.1,23835.0,23826.0,7.227e-05]
[1659297560313,0.14489778,23831.0,23826.0,7.227e-05]
[1659297560533,0.14489778,23831.0,23826.0,0.4073296]
[1659297561003,0.14489778,23831.0,23826.0,0.44913733]
[1659297561243,0.14489778,23831.0,23827.0,0.288876]
[1659297561470,0.02962271,23830.0,23826.0,0.44913733]
[1659297561716,0.50584395,23829.0,23827.0,0.288875]
[1659297561959,0.50584395,23829.0,23828.0,0.34188]
[1659297562206,0.50584395,23829.0,23828.0,0.930745]
[1659297562899,0.50584395,23829.0,23828.0,0.630745]
[1659297563128,0.50584395,23829.0,23825.0,0.1]
[1659297563129,1.24345723,23829.0,23826.0,8.108e-05]
[1659297563383,0.69489778,23827.0,23826.0,8.108e-05]
[1659297563624,1.04584478,23827.0,23826.0,8.108e-05]
[1659297564080,0.69511154,23827.0,23821.0,0.04188]
[1659297564316,0.69511154,23827.0,23822.0,0.44913733]
[1659297564521,0.14511154,23827.0,23825.0,6.704e-05]
[1659297564766,0.47430673,23826.0,23825.0,6.704e-05]
[1659297565006,0.77525373,23826.0,23825.0,6.704e-05]
[1659297565234,0.05,23827.0,23825.0,0.08527704]
[1659297565452,0.00021376,23827.0,23825.0,0.45058733]
[1659297565742,0.02940895,23826.0,23825.0,0.44913733]
[1659297565967,0.02940895,23826.0,23825.0,0.48625733]
[1659297566197,0.02940895,23826.0,23825.0,0.07906094]
[1659297566658,0.00192623,23829.0,23825.0,0.53447764]
[1659297566880,0.00192623,23829.0,23826.0,1.03803233]
[1659297567164,0.00192623,23829.0,23828.0,0.05]
[1659297567341,0.8839215,23836.0,23828.0,1.08800333]
[1659297567572,0.5839215,23836.0,23829.0,0.44913733]
[1659297567793,0.5839215,23836.0,23830.0,0.70725733]
[1659297568029,0.5839215,23836.0,23830.0,0.74913733]
[1659297568248,0.0019215,23836.0,23830.0,0.44913733]
[1659297568464,0.0019215,23836.0,23832.0,0.04188]
[1659297568695,0.0019215,23836.0,23833.0,0.04815903]
[1659297568932,0.0019215,23836.0,23833.0,0.34815903]
[1659297569396,0.0019215,23836.0,23833.0,0.04815903]
[1659297569691,0.0019215,23836.0,23835.0,0.09188]
[1659297569919,0.0019215,23836.0,23835.0,1.03790333]
[1659297570135,0.0019215,23836.0,23835.0,0.73790333]
[1659297570370,0.0019215,23836.0,23835.0,1.03790333]
[1659297570594,0.55842271,23837.0,23835.0,0.73790333]
[1659297570858,0.55842271,23837.0,23836.0,0.75725733]
[1659297570859,0.5288,23837.0,23836.0,0.75725733]
[1659297571099,0.5288,23837.0,23836.0,0.75897137]
[1659297571541,0.5288,23837.0,23836.0,1.10085137]
[1659297571775,0.5788,23837.0,23836.0,1.10085137]
[1659297571999,0.5788,23837.0,23836.0,1.16085137]
[1659297572449,0.5788,23837.0,23836.0,1.11897137]
[1659297572689,0.5788,23837.0,23836.0,0.84788633]
[1659297572903,0.5788,23837.0,23836.0,0.390629]
[1659297573130,0.5788,23837.0,23836.0,0.348749]
[1659297573401,0.5788,23837.0,23832.0,0.14478057]
[1659297573625,0.5788,23837.0,23833.0,0.73792233]
[1659297573847,0.54765375,23835.0,23834.0,0.01371873]
[1659297574099,0.59765375,23835.0,23834.0,0.288777]
[1659297575051,0.59765375,23835.0,23834.0,0.60249573]
[1659297575492,0.5994127,23835.0,23834.0,0.30249573]
[1659297575721,0.5994127,23835.0,23834.0,0.01371873]
[1659297575934,0.5994127,23835.0,23834.0,0.08871873]
[1659297576174,0.5994127,23835.0,23834.0,0.37749573]
[1659297576642,0.5994127,23835.0,23834.0,0.363777]
[1659297577087,0.5994127,23835.0,23834.0,0.663777]
[1659297577347,0.5994127,23835.0,23834.0,0.588777]
[1659297577564,0.5994127,23835.0,23834.0,0.2895805]
[1659297577756,0.5994127,23835.0,23834.0,0.288777]
[1659297578027,0.5994127,23835.0,23834.0,0.363777]
[1659297578469,0.5994127,23835.0,23834.0,0.663777]
[1659297578729,0.5994127,23835.0,23834.0,0.405657]
[1659297578967,0.05,23833.0,23829.0,0.654]
[1659297579206,0.05,23833.0,23822.0,0.654]
[1659297579207,0.70725733,23832.0,23822.0,0.654]
[1659297579454,0.09541865,23830.0,23826.0,6.282e-05]
[1659297579686,0.02962271,23829.0,23827.0,0.00526421]
[1659297579907,0.05,23830.0,23827.0,0.40725733]
[1659297580155,0.05,23830.0,23828.0,0.04188]
[1659297580388,0.13176966,23832.0,23828.0,0.04188]
[1659297580826,0.02962271,23831.0,23828.0,0.04188]
[1659297581136,0.02962271,23831.0,23824.0,0.37342]
[1659297581413,0.02962271,23831.0,23826.0,6.339e-05]
[1659297581627,0.02962271,23831.0,23827.0,0.44913733]
[1659297581849,0.02962271,23831.0,23828.0,0.3]